fUST/lending_fUST_20241229
["ID","MTS","AMOUNT","RATE_DAILY","PERIOD"]
[346962824,1735432255685,-2820.38635756,0.00020673,2]
[346962825,1735432255696,-711.69,0.00020673,2]
[346962826,1735432255705,-4066.47,0.00020673,2]
[346962827,1735432255714,-151.0,0.00020681,2]
[346962828,1735432255723,-166.716455,0.00020681,2]
[346962829,1735432255791,-151.0,0.00020681,2]
[346962830,1735432255806,-151.0,0.00020681,2]
[346962831,1735432255815,-151.0,0.00020681,2]
[346962832,1735432255824,-151.0,0.00020681,2]
[346962833,1735432255833,-151.0,0.00020681,2]
[346962834,1735432255842,-151.0,0.00020681,2]
[346962835,1735432255851,-151.0,0.00020681,2]
[346962836,1735432255861,-119.77463469,0.00020681,2]
[346962837,1735432255926,-98.32183131,0.00020681,2]
[346962838,1735432255935,-229.306436,0.00020681,2]
[346962839,1735432255944,-9.95856181,0.00020681,2]
[346962840,1735432255956,-219.34787419,0.00020681,2]
[346962841,1735432255965,-229.306436,0.00020681,2]
[346962842,1735432255974,-229.306436,0.00020681,2]
[346962843,1735432255983,-229.306436,0.00020681,2]
[346962844,1735432255992,-73.80529624,0.00020681,2]
[346962846,1735432690080,1797.32918446,0.000255,120]
[346962848,1735433133139,-400.0,0.00013288,2]
[346962849,1735433133163,-400.0,0.00013422,2]
[346962850,1735433133185,-400.0,0.00013973,2]
[346962851,1735433133207,-625.03939635,0.00014988,2]
[346962852,1735433133228,-383.67280482,0.00014989,2]
[346962853,1735433133250,-383.67280482,0.00014989,2]
[346962854,1735433133272,-383.67280482,0.00014989,2]
[346962855,1735433133294,-72.95615199,0.00014993,2]
[346962856,1735433232132,-277.99055866,0.00014993,2]
[346962857,1735433238097,-274.0926857,0.00014993,2]
[346962858,1735433238121,-625.03939635,0.00014999,2]
[346962859,1735433238144,-131.02185766,0.00017205,2]
[346962860,1735433246126,-58.57836284,0.00017205,2]
[346962861,1735433246147,-189.6002205,0.00017379,2]
[346962862,1735433246167,-151.0,0.00017645,2]
[346962863,1735433246188,-300.0,0.00017653,2]
[346962864,1735433246212,-500.0,0.00017654,2]
[346962865,1735433246232,-565.03455648,0.00017654,2]
[346962866,1735433246254,-398.34462468,0.00017654,2]
[346962867,1735433248098,-393.94537532,0.00017654,2]
[346962868,1735433248119,-498.61707561,0.00017654,2]
[346962869,1735433248139,-500.0,0.00017654,2]
[346962870,1735433248161,-143.53653384,0.00017654,2]
[346962911,1735433432457,-400.0,0.00013973,2]
[346962913,1735433432466,-713.8360678,0.00017477,2]
[346962915,1735433432476,-9.87170868,0.00017555,2]
[346962916,1735433432487,-200.36798237,0.00017555,2]
[346962918,1735433432497,-300.0,0.00017653,2]
[346962920,1735433432506,-356.46346616,0.00017654,2]
[346962922,1735433432516,-1036.72855147,0.00017654,2]
[346962924,1735433432531,-647.99144853,0.00017654,2]
[346962926,1735433432543,-538.63,0.00017654,2]
[346962928,1735433432554,-200.0,0.00017654,2]
[346962931,1735433432564,-500.0,0.00017654,2]
[346962933,1735433432574,-583.58,0.00017654,2]
[346962935,1735433432583,-500.0,0.00017654,2]
[346962937,1735433432592,-500.0,0.00017654,2]
[346962939,1735433432602,-500.0,0.00017654,2]
[346962941,1735433432611,-981.54,0.00017654,2]
[346962943,1735433432620,-500.0,0.00017654,2]
[346962945,1735433432629,-759.28,0.00017654,2]
[346962947,1735433432639,-500.0,0.00017654,2]
[346962949,1735433432649,-500.0,0.00017654,2]
[346962952,1735433432658,-508.47,0.00017654,2]
[346962954,1735433432668,-187.76,0.00017654,2]
[346962956,1735433432677,-194.08,0.00017654,2]
[346962958,1735433432687,-502.21108782,0.00017654,2]
[346962960,1735433432696,-81.37695411,0.00017654,2]
[346962962,1735433432708,-418.62304589,0.00017654,2]
[346962964,1735433432718,-83.76317567,0.00017654,2]
[346962968,1735433432742,-268.209553,0.00017654,2]
[346962970,1735433432754,-148.02727133,0.00017654,2]
[346962972,1735433432763,-351.53620667,0.00017654,2]
[346962974,1735433432775,-148.46379333,0.00017654,2]
[346962977,1735433432784,-535.49105648,0.00017654,2]
[346962979,1735433432794,-500.0,0.00017654,2]
[346962981,1735433432804,-500.0,0.00017654,2]
[346962983,1735433432813,-167.34348137,0.00017654,2]
[346962985,1735433432823,-586.14,0.00017655,2]
[346962987,1735433432832,-223.923,0.00017655,2]
[346962989,1735433432841,-500.0,0.00017655,2]
[346962991,1735433432851,-500.0,0.00017655,2]
[346962992,1735433432860,-262.32,0.00017655,2]
[346962994,1735433432871,-500.0,0.00017655,2]
[346962995,1735433432882,-500.0,0.00017655,2]
[346962997,1735433432893,-336.18,0.00017655,2]
[346962999,1735433432902,-500.0,0.00017655,2]
[346963001,1735433432912,-500.0,0.00017655,2]
[346963003,1735433432922,-500.0,0.00017655,2]
[346963004,1735433432931,-500.0,0.00017655,2]
[346963006,1735433432941,-500.0,0.00017655,2]
[346963008,1735433432950,-500.0,0.00017655,2]
[346963010,1735433432960,-500.0,0.00017655,2]
[346963012,1735433432969,-500.0,0.00017655,2]
[346963013,1735433432978,-500.0,0.00017655,2]
[346963015,1735433432988,-500.0,0.00017655,2]
[346963017,1735433432998,-500.0,0.00017655,2]
[346963019,1735433433007,-500.0,0.00017655,2]
[346963021,1735433433016,-500.0,0.00017655,2]
[346963022,1735433433026,-500.0,0.00017655,2]
[346963024,1735433433036,-500.0,0.00017655,2]
[346963026,1735433433045,-500.0,0.00017655,2]
[346963028,1735433433055,-500.0,0.00017655,2]
[346963029,1735433433064,-500.0,0.00017655,2]
[346963031,1735433433074,-500.0,0.00017655,2]
[346963032,1735433433083,-500.0,0.00017655,2]
[346963034,1735433433093,-583.94,0.00017655,2]
[346963036,1735433433102,-4376.19866882,0.00017655,2]
[346963038,1735433433115,-618.6632773,0.00017655,2]
[346963041,1735433438166,-273.4587016,0.00017655,2]
[346963042,1735433438178,-8114.47935228,0.00017655,2]
[346963043,1735433438187,-500.0,0.00017655,2]
[346963044,1735433438197,-500.0,0.00017655,2]
[346963045,1735433438206,-293.63,0.00017655,2]
[346963046,1735433438215,-546.39,0.00017655,2]
[346963047,1735433438224,-500.0,0.00017655,2]
[346963048,1735433438233,-500.0,0.00017655,2]
[346963049,1735433438243,-500.0,0.00017655,2]
[346963050,1735433438252,-314.95,0.00017656,2]
[346963051,1735433438261,-500.0,0.00017656,2]
[346963052,1735433438270,-500.0,0.00017656,2]
[346963053,1735433438278,-308.65548559,0.00017656,2]
[346963054,1735433438345,-191.34451441,0.00017656,2]
[346963055,1735433438355,-388.77233549,0.00017656,2]
[346963056,1735433438364,-491.22766451,0.00017656,2]
[346963057,1735433438373,-500.0,0.00017656,2]
[346963058,1735433438382,-500.0,0.00017656,2]
[346963059,1735433438391,-500.0,0.00017656,2]
[346963060,1735433438401,-756.6,0.00017656,2]
[346963061,1735433438410,-500.0,0.00017656,2]
[346963062,1735433438419,-500.0,0.00017656,2]
[346963063,1735433438429,-500.0,0.00017656,2]
[346963064,1735433438440,-500.0,0.00017656,2]
[346963065,1735433438450,-407.37,0.00017656,2]
[346963066,1735433438459,-500.0,0.00017656,2]
[346963067,1735433438468,-500.0,0.00017656,2]
[346963068,1735433438478,-500.0,0.00017656,2]
[346963069,1735433438487,-500.0,0.00017656,2]
[346963070,1735433438496,-500.0,0.00017656,2]
[346963071,1735433438506,-512.38521138,0.00017657,2]
[346963072,1735433438515,-4272.27,0.00017657,2]
[346963073,1735433438524,-500.0,0.00017658,2]
[346963074,1735433438533,-368.69049721,0.00017928,2]
[346963075,1735433438542,-173.52171621,0.00017928,2]
[346963076,1735433438551,-500.0,0.00017928,2]
[346963077,1735433438563,-500.0,0.00017928,2]
[346963078,1735433438572,-1684.72,0.00017928,2]
[346963079,1735433438581,-500.0,0.00017928,2]
[346963080,1735433438591,-583.58,0.00017928,2]
[346963081,1735433438600,-500.0,0.00017928,2]
[346963082,1735433438609,-500.0,0.00017928,2]
[346963083,1735433438619,-500.0,0.00017928,2]
[346963084,1735433438628,-981.54,0.00017928,2]
[346963085,1735433438637,-500.0,0.00017928,2]
[346963086,1735433438647,-759.28,0.00017928,2]
[346963087,1735433438656,-500.0,0.00017928,2]
[346963088,1735433438666,-500.0,0.00017928,2]
[346963089,1735433438675,-508.47,0.00017928,2]
[346963090,1735433438685,-500.0,0.00017929,2]
[346963091,1735433438695,-500.0,0.00017929,2]
[346963092,1735433438704,-500.0,0.00017929,2]
[346963093,1735433438713,-500.0,0.00017929,2]
[346963094,1735433438722,-500.0,0.00017929,2]
[346963095,1735433438732,-500.0,0.00017929,2]
[346963096,1735433438741,-500.0,0.00017929,2]
[346963097,1735433438750,-500.0,0.00017929,2]
[346963098,1735433438760,-433.08,0.00017929,2]
[346963099,1735433438769,-500.0,0.00017929,2]
[346963100,1735433438779,-500.0,0.00017929,2]
[346963101,1735433438788,-500.0,0.00017929,2]
[346963102,1735433438797,-500.0,0.00017929,2]
[346963103,1735433438806,-500.0,0.00017929,2]
[346963104,1735433438815,-500.0,0.00017929,2]
[346963105,1735433438825,-500.0,0.00017929,2]
[346963106,1735433438834,-500.0,0.00017929,2]
[346963107,1735433438844,-500.0,0.00017929,2]
[346963108,1735433438853,-500.0,0.00017929,2]
[346963109,1735433438863,-500.0,0.00017929,2]
[346963110,1735433438872,-500.0,0.00017929,2]
[346963111,1735433438882,-583.94,0.00017929,2]
[346963112,1735433438891,-13382.8,0.00017929,2]
[346963113,1735433438901,-500.0,0.00017929,2]
[346963114,1735433438910,-500.0,0.00017929,2]
[346963115,1735433439017,-546.39,0.00017929,2]
[346963116,1735433439028,-500.0,0.00017929,2]
[346963117,1735433439037,-500.0,0.00017929,2]
[346963118,1735433439048,-500.0,0.00017929,2]
[346963119,1735433439058,-500.0,0.0001793,2]
[346963120,1735433439068,-255.71,0.0001793,2]
[346963121,1735433439078,-344.31,0.0001793,2]
[346963122,1735433439087,-500.0,0.0001793,2]
[346963123,1735433439097,-756.6,0.0001793,2]
[346963124,1735433439106,-500.0,0.0001793,2]
[346963125,1735433439115,-500.0,0.0001793,2]
[346963126,1735433439125,-500.0,0.0001793,2]
[346963127,1735433439135,-500.0,0.0001793,2]
[346963128,1735433439144,-296.81,0.0001793,2]
[346963129,1735433439153,-500.0,0.0001793,2]
[346963130,1735433439163,-500.0,0.0001793,2]
[346963131,1735433439172,-4272.27,0.00017931,2]
[346963132,1735433439181,-500.0,0.00017932,2]
[346963133,1735433439191,-210.23969101,0.0001799,2]
[346963134,1735433439201,-571.80787242,0.00018103,2]
[346963135,1735433439210,-305.13,0.00018202,2]
[346963136,1735433439219,-1684.72,0.00018202,2]
[346963137,1735433439229,-500.0,0.00018202,2]
[346963138,1735433439238,-583.58,0.00018202,2]
[346963139,1735433439247,-500.0,0.00018202,2]
[346963140,1735433439256,-500.0,0.00018202,2]
[346963141,1735433439266,-500.0,0.00018202,2]
[346963142,1735433439275,-981.54,0.00018202,2]
[346963143,1735433439284,-500.0,0.00018202,2]
[346963144,1735433439293,-759.28,0.00018202,2]
[346963145,1735433439303,-500.0,0.00018202,2]
[346963146,1735433439312,-500.0,0.00018202,2]
[346963147,1735433439322,-508.47,0.00018202,2]
[346963148,1735433439331,-500.0,0.00018203,2]
[346963149,1735433439340,-500.0,0.00018203,2]
[346963150,1735433439350,-500.0,0.00018203,2]
[346963151,1735433439359,-500.0,0.00018203,2]
[346963152,1735433439368,-500.0,0.00018203,2]
[346963153,1735433439378,-500.0,0.00018203,2]
[346963154,1735433439387,-500.0,0.00018203,2]
[346963155,1735433439397,-500.0,0.00018203,2]
[346963156,1735433439406,-500.0,0.00018203,2]
[346963157,1735433439415,-500.0,0.00018203,2]
[346963158,1735433439425,-500.0,0.00018203,2]
[346963159,1735433439434,-500.0,0.00018203,2]
[346963160,1735433439443,-500.0,0.00018203,2]
[346963161,1735433439452,-500.0,0.00018203,2]
[346963162,1735433439462,-500.0,0.00018203,2]
[346963163,1735433439472,-500.0,0.00018203,2]
[346963164,1735433439481,-500.0,0.00018203,2]
[346963165,1735433439491,-500.0,0.00018203,2]
[346963166,1735433439500,-500.0,0.00018203,2]
[346963167,1735433439509,-167.2,0.00018203,2]
[346963168,1735433439518,-583.94,0.00018203,2]
[346963169,1735433439527,-13382.8,0.00018203,2]
[346963170,1735433439536,-500.0,0.00018203,2]
[346963171,1735433439546,-500.0,0.00018203,2]
[346963172,1735433439557,-546.39,0.00018203,2]
[346963173,1735433439567,-500.0,0.00018203,2]
[346963174,1735433439576,-500.0,0.00018203,2]
[346963175,1735433439585,-500.0,0.00018203,2]
[346963176,1735433439595,-500.0,0.00018204,2]
[346963177,1735433439606,-500.0,0.00018204,2]
[346963178,1735433439615,-756.6,0.00018204,2]
[346963179,1735433439625,-500.0,0.00018204,2]
[346963180,1735433439636,-500.0,0.00018204,2]
[346963181,1735433439645,-500.0,0.00018204,2]
[346963182,1735433439655,-500.0,0.00018204,2]
[346963183,1735433439664,-500.0,0.00018204,2]
[346963184,1735433439674,-500.0,0.00018204,2]
[346963185,1735433439684,-7021.91,0.00018205,2]
[346963186,1735433439694,-500.0,0.00018205,2]
[346963187,1735433439703,-500.0,0.00018205,2]
[346963188,1735433439713,-500.0,0.00018205,2]
[346963189,1735433439723,-500.0,0.00018205,2]
[346963190,1735433439733,-6571.09,0.00018205,2]
[346963191,1735433439742,-4272.27,0.00018205,2]
[346963192,1735433439752,-916.51,0.00018205,2]
[346963193,1735433439761,-500.0,0.00018205,2]
[346963194,1735433439770,-500.0,0.00018206,2]
[346963195,1735433439779,-210.23969101,0.00018425,2]
[346963196,1735433439789,-1684.72,0.00018476,2]
[346963197,1735433439798,-500.0,0.00018476,2]
[346963198,1735433439807,-583.58,0.00018476,2]
[346963199,1735433439817,-500.0,0.00018476,2]
[346963200,1735433439826,-500.0,0.00018476,2]
[346963201,1735433439835,-500.0,0.00018476,2]
[346963202,1735433439845,-981.54,0.00018476,2]
[346963203,1735433439855,-500.0,0.00018476,2]
[346963204,1735433439864,-759.28,0.00018476,2]
[346963207,1735433439873,-500.0,0.00018476,2]
[346963209,1735433439883,-500.0,0.00018476,2]
[346963210,1735433439892,-508.47,0.00018476,2]
[346963211,1735433439901,-500.0,0.00018477,2]
[346963212,1735433439911,-568.27,0.00018477,2]
[346963213,1735433439920,-500.0,0.00018477,2]
[346963214,1735433439929,-500.0,0.00018477,2]
[346963215,1735433439939,-500.0,0.00018477,2]
[346963216,1735433439948,-500.0,0.00018477,2]
[346963217,1735433439957,-500.0,0.00018477,2]
[346963218,1735433439966,-500.0,0.00018477,2]
[346963219,1735433439976,-500.0,0.00018477,2]
[346963220,1735433439985,-500.0,0.00018477,2]
[346963221,1735433439995,-500.0,0.00018477,2]
[346963222,1735433440004,-500.0,0.00018477,2]
[346963223,1735433440014,-500.0,0.00018477,2]
[346963224,1735433440023,-500.0,0.00018477,2]
[346963225,1735433440032,-500.0,0.00018477,2]
[346963226,1735433440044,-500.0,0.00018477,2]
[346963227,1735433440055,-500.0,0.00018477,2]
[346963228,1735433440064,-500.0,0.00018477,2]
[346963229,1735433440074,-500.0,0.00018477,2]
[346963230,1735433440083,-583.94,0.00018477,2]
[346963231,1735433440094,-13382.8,0.00018477,2]
[346963232,1735433440103,-500.0,0.00018477,2]
[346963233,1735433440113,-500.0,0.00018477,2]
[346963234,1735433440123,-546.39,0.00018477,2]
[346963235,1735433440132,-500.0,0.00018477,2]
[346963236,1735433440142,-500.0,0.00018477,2]
[346963237,1735433440151,-500.0,0.00018477,2]
[346963238,1735433440160,-500.0,0.00018478,2]
[346963239,1735433440169,-500.0,0.00018478,2]
[346963240,1735433440180,-756.6,0.00018478,2]
[346963241,1735433440190,-500.0,0.00018478,2]
[346963243,1735433440200,-500.0,0.00018478,2]
[346963244,1735433440209,-500.0,0.00018478,2]
[346963245,1735433440219,-500.0,0.00018478,2]
[346963246,1735433440228,-500.0,0.00018478,2]
[346963247,1735433440238,-500.0,0.00018478,2]
[346963248,1735433440248,-7021.91,0.00018479,2]
[346963249,1735433440258,-500.7,0.00018479,2]
[346963250,1735433440267,-500.0,0.00018479,2]
[346963251,1735433440277,-500.0,0.00018479,2]
[346963252,1735433440286,-500.0,0.00018479,2]
[346963253,1735433440295,-6571.09,0.00018479,2]
[346963254,1735433440305,-4272.27,0.00018479,2]
[346963255,1735433440315,-916.51,0.00018479,2]
[346963256,1735433440325,-500.0,0.00018479,2]
[346963257,1735433440335,-500.0,0.0001848,2]
[346963258,1735433440344,-571.8078724,0.00018582,2]
[346963259,1735433440353,-1684.72,0.0001875,2]
[346963260,1735433440363,-500.0,0.0001875,2]
[346963261,1735433440372,-583.58,0.0001875,2]
[346963262,1735433440382,-500.0,0.0001875,2]
[346963263,1735433440391,-500.0,0.0001875,2]
[346963264,1735433440401,-500.0,0.0001875,2]
[346963265,1735433440410,-981.54,0.0001875,2]
[346963266,1735433440419,-500.0,0.0001875,2]
[346963267,1735433440428,-759.28,0.0001875,2]
[346963268,1735433440439,-500.0,0.0001875,2]
[346963269,1735433440449,-500.0,0.0001875,2]
[346963270,1735433440458,-508.47,0.0001875,2]
[346963271,1735433440467,-500.0,0.00018751,2]
[346963272,1735433440476,-500.0,0.00018751,2]
[346963273,1735433440485,-500.0,0.00018751,2]
[346963274,1735433440495,-500.0,0.00018751,2]
[346963276,1735433440505,-500.0,0.00018751,2]
[346963278,1735433440514,-500.0,0.00018751,2]
[346963280,1735433440523,-500.0,0.00018751,2]
[346963282,1735433440533,-500.0,0.00018751,2]
[346963283,1735433440542,-500.0,0.00018751,2]
[346963284,1735433440552,-500.0,0.00018751,2]
[346963285,1735433440565,-500.0,0.00018751,2]
[346963286,1735433440574,-500.0,0.00018751,2]
[346963287,1735433440584,-500.0,0.00018751,2]
[346963288,1735433440594,-500.0,0.00018751,2]
[346963289,1735433440603,-500.0,0.00018751,2]
[346963290,1735433440612,-500.0,0.00018751,2]
[346963291,1735433440621,-500.0,0.00018751,2]
[346963292,1735433440631,-500.0,0.00018751,2]
[346963293,1735433440641,-583.94,0.00018751,2]
[346963294,1735433440651,-13382.8,0.00018751,2]
[346963295,1735433440660,-500.0,0.00018751,2]
[346963296,1735433440670,-500.0,0.00018751,2]
[346963297,1735433440680,-546.39,0.00018751,2]
[346963298,1735433440690,-500.0,0.00018751,2]
[346963299,1735433440700,-500.0,0.00018751,2]
[346963300,1735433440709,-500.0,0.00018751,2]
[346963301,1735433440719,-500.0,0.00018752,2]
[346963302,1735433440729,-500.0,0.00018752,2]
[346963303,1735433440738,-756.6,0.00018752,2]
[346963304,1735433440748,-500.0,0.00018752,2]
[346963305,1735433440758,-500.0,0.00018752,2]
[346963306,1735433440767,-500.0,0.00018752,2]
[346963307,1735433440776,-500.0,0.00018752,2]
[346963308,1735433440785,-500.0,0.00018752,2]
[346963309,1735433440795,-500.0,0.00018752,2]
[346963310,1735433440804,-7021.91,0.00018753,2]
[346963311,1735433440813,-500.0,0.00018753,2]
[346963312,1735433440822,-6571.09,0.00018753,2]
[346963313,1735433440832,-4272.27,0.00018753,2]
[346963314,1735433440841,-916.51,0.00018753,2]
[346963315,1735433440850,-500.0,0.00018753,2]
[346963316,1735433440859,-500.0,0.00018757,2]
[346963317,1735433440868,-210.23969101,0.0001886,2]
[346963318,1735433440877,-4274.0,0.00019,2]
[346963319,1735433440887,-1684.72,0.00019024,2]
[346963320,1735433440896,-500.0,0.00019024,2]
[346963321,1735433440905,-583.58,0.00019024,2]
[346963322,1735433440914,-500.0,0.00019024,2]
[346963323,1735433440923,-500.0,0.00019024,2]
[346963324,1735433440932,-500.0,0.00019024,2]
[346963325,1735433440943,-981.54,0.00019024,2]
[346963326,1735433440952,-500.0,0.00019024,2]
[346963327,1735433440961,-759.28,0.00019024,2]
[346963328,1735433440971,-500.0,0.00019024,2]
[346963329,1735433440980,-500.0,0.00019024,2]
[346963330,1735433440989,-508.47,0.00019024,2]
[346963331,1735433440999,-500.0,0.00019025,2]
[346963332,1735433441007,-500.0,0.00019025,2]
[346963333,1735433441016,-500.0,0.00019025,2]
[346963334,1735433441026,-500.0,0.00019025,2]
[346963335,1735433441035,-500.0,0.00019025,2]
[346963336,1735433441045,-500.0,0.00019025,2]
[346963337,1735433441127,-399.43,0.00019025,2]
[346963338,1735433441137,-500.0,0.00019025,2]
[346963339,1735433441147,-500.0,0.00019025,2]
[346963340,1735433441157,-500.0,0.00019025,2]
[346963341,1735433441166,-500.0,0.00019025,2]
[346963342,1735433441176,-500.0,0.00019025,2]
[346963343,1735433441185,-500.0,0.00019025,2]
[346963344,1735433441195,-500.0,0.00019025,2]
[346963345,1735433441205,-500.0,0.00019025,2]
[346963346,1735433441214,-500.0,0.00019025,2]
[346963347,1735433441224,-500.0,0.00019025,2]
[346963348,1735433441234,-500.0,0.00019025,2]
[346963349,1735433441244,-583.94,0.00019025,2]
[346963350,1735433441254,-13382.8,0.00019025,2]
[346963351,1735433441263,-500.0,0.00019025,2]
[346963352,1735433441273,-500.0,0.00019025,2]
[346963353,1735433441283,-546.39,0.00019025,2]
[346963354,1735433441293,-500.0,0.00019025,2]
[346963355,1735433441302,-500.0,0.00019025,2]
[346963356,1735433441312,-500.0,0.00019025,2]
[346963357,1735433441322,-500.0,0.00019026,2]
[346963358,1735433441331,-756.6,0.00019026,2]
[346963359,1735433441341,-500.0,0.00019026,2]
[346963360,1735433441350,-500.0,0.00019026,2]
[346963361,1735433441359,-500.0,0.00019026,2]
[346963362,1735433441369,-500.0,0.00019026,2]
[346963363,1735433441379,-500.0,0.00019026,2]
[346963364,1735433441388,-500.0,0.00019026,2]
[346963365,1735433441398,-7021.91,0.00019027,2]
[346963366,1735433441407,-500.0,0.00019027,2]
[346963367,1735433441417,-6571.09,0.00019027,2]
[346963368,1735433441426,-4272.27,0.00019027,2]
[346963369,1735433441436,-916.51,0.00019027,2]
[346963370,1735433441447,-500.0,0.00019027,2]
[346963371,1735433441456,-571.8078724,0.00019062,2]
[346963372,1735433441468,-164.950358,0.00019178,2]
[346963373,1735433441477,-419.0,0.00019268,2]
[346963374,1735433441487,-210.23969101,0.00019296,2]
[346963375,1735433441497,-1684.72,0.00019298,2]
[346963376,1735433441507,-500.0,0.00019298,2]
[346963377,1735433441517,-583.58,0.00019298,2]
[346963378,1735433441527,-500.0,0.00019298,2]
[346963379,1735433441537,-500.0,0.00019298,2]
[346963380,1735433441546,-500.0,0.00019298,2]
[346963381,1735433441559,-981.54,0.00019298,2]
[346963382,1735433441569,-500.0,0.00019298,2]
[346963383,1735433441578,-759.28,0.00019298,2]
[346963384,1735433441588,-500.0,0.00019298,2]
[346963385,1735433441598,-500.0,0.00019298,2]
[346963386,1735433441608,-508.47,0.00019298,2]
[346963387,1735433441618,-500.0,0.00019299,2]
[346963388,1735433441628,-500.0,0.00019299,2]
[346963389,1735433441638,-500.0,0.00019299,2]
[346963390,1735433441648,-500.0,0.00019299,2]
[346963391,1735433441658,-500.0,0.00019299,2]
[346963392,1735433441667,-500.0,0.00019299,2]
[346963393,1735433441677,-216.48,0.00019299,2]
[346963394,1735433441687,-151.0,0.00019299,2]
[346963395,1735433441697,-500.0,0.00019299,2]
[346963396,1735433441706,-151.0,0.00019299,2]
[346963397,1735433441716,-500.0,0.00019299,2]
[346963398,1735433441726,-500.0,0.00019299,2]
[346963399,1735433441736,-151.0,0.00019299,2]
[346963400,1735433441745,-151.0,0.00019299,2]
[346963401,1735433441755,-500.0,0.00019299,2]
[346963402,1735433441765,-500.0,0.00019299,2]
[346963403,1735433441775,-500.0,0.00019299,2]
[346963404,1735433441785,-500.0,0.00019299,2]
[346963405,1735433441795,-500.0,0.00019299,2]
[346963406,1735433441805,-500.0,0.00019299,2]
[346963407,1735433441814,-583.94,0.00019299,2]
[346963408,1735433441825,-13382.8,0.00019299,2]
[346963409,1735433441835,-500.0,0.00019299,2]
[346963410,1735433441845,-500.0,0.00019299,2]
[346963411,1735433441855,-546.39,0.00019299,2]
[346963412,1735433441864,-500.0,0.00019299,2]
[346963413,1735433441875,-500.0,0.00019299,2]
[346963414,1735433441884,-500.0,0.00019299,2]
[346963415,1735433441894,-500.0,0.000193,2]
[346963416,1735433441904,-756.6,0.000193,2]
[346963417,1735433441914,-500.0,0.000193,2]
[346963418,1735433441924,-500.0,0.000193,2]
[346963419,1735433441934,-500.0,0.000193,2]
[346963420,1735433441945,-152.964046,0.000193,2]
[346963421,1735433441955,-500.0,0.000193,2]
[346963422,1735433441964,-151.0,0.000193,2]
[346963423,1735433441974,-151.0,0.000193,2]
[346963424,1735433441984,-151.0,0.000193,2]
[346963425,1735433441993,-151.0,0.000193,2]
[346963426,1735433442003,-591.990534,0.000193,2]
[346963427,1735433442013,-591.990534,0.000193,2]
[346963428,1735433442022,-151.0,0.000193,2]
[346963429,1735433442031,-151.0,0.000193,2]
[346963430,1735433442041,-151.0,0.000193,2]
[346963431,1735433442050,-500.0,0.000193,2]
[346963432,1735433442060,-182.415833,0.000193,2]
[346963433,1735433442069,-179.306546,0.000193,2]
[346963434,1735433442079,-179.306546,0.000193,2]
[346963435,1735433442089,-151.0,0.000193,2]
[346963436,1735433442098,-210.233893,0.000193,2]
[346963437,1735433442107,-210.233893,0.000193,2]